Workbook

Sheet 업무수행능력(면접)평가서
A1: 광양국가산단 명당3지구 조성사업 감독권한대행 등 건설사업관리용역 업무수행능력(면접)평가서
A2: - 총괄 집계표 -
A4: 회사별 등 급 | C4: ㈜유신 | E4: 한국건설관리공사 | G4: ㈜수성엔지니어링 | I4: ㈜삼안 | K4: ㈜동명기술공단 | M4: ㈜한국종합기술 | O4: ㈜도화엔지니어링 | Q4: ㈜건화 | S4: ㈜신명건설기술공사
C5: ㈜우빈 | E5: ㈜평화 | G5: ㈜동아기술공사 | I5: 한국기술개발㈜ | K5: ㈜산이건설 | M5: 산하종합기술㈜ | O5: ㈜원우기술개발 | Q5: ㈜우영기술단건축사무소 | S5: ㈜케이지엔지니어링
E6: ㈜천일 | M6: ㈜융창이엔지 | O6: ㈜서영엔지니어링 | S6: ㈜광장엔지니어링
A7: 위원1 | B7: 계
B8: 책임기술자 | C8: 우 | D8: 2.7 | E8: 양 | F8: 2.1 | G8: 우 | H8: 2.7 | I8: 가 | J8: 1.8 | K8: 미 | L8: 2.4 | M8: 양 | N8: 2.1 | O8: 수 | P8: 3 | Q8: 미 | R8: 2.4 | S8: 미 | T8: 2.4
B9: 보조기술자 | C9: 미 | D9: 1.2 | E9: 양 | F9: 1.05 | G9: 우 | H9: 1.35 | I9: 가 | J9: 0.9 | K9: 미 | L9: 1.2 | M9: 양 | N9: 1.05 | O9: 수 | P9: 1.5 | Q9: 미 | R9: 1.2 | S9: 우 | T9: 1.35
A10: 위원2 | B10: 계
B11: 책임기술자 | C11: 양 | D11: 2.1 | E11: 미 | F11: 2.4 | G11: 수 | H11: 3 | I11: 양 | J11: 2.1 | K11: 미 | L11: 2.4 | M11: 미 | N11: 2.4 | O11: 우 | P11: 2.7 | Q11: 가 | R11: 1.8 | S11: 우 | T11: 2.7
B12: 보조기술자 | C12: 양 | D12: 1.05 | E12: 수 | F12: 1.5 | G12: 우 | H12: 1.35 | I12: 가 | J12: 0.9 | K12: 미 | L12: 1.2 | M12: 미 | N12: 1.2 | O12: 미 | P12: 1.2 | Q12: 양 | R12: 1.05 | S12: 우 | T12: 1.35
A13: 위원3 | B13: 계
B14: 책임기술자 | C14: 양 | D14: 2.1 | E14: 수 | F14: 3 | G14: 미 | H14: 2.4 | I14: 양 | J14: 2.1 | K14: 우 | L14: 2.7 | M14: 가 | N14: 1.8 | O14: 우 | P14: 2.7 | Q14: 미 | R14: 2.4 | S14: 미 | T14: 2.4
B15: 보조기술자 | C15: 양 | D15: 1.05 | E15: 우 | F15: 1.35 | G15: 미 | H15: 1.2 | I15: 양 | J15: 1.05 | K15: 수 | L15: 1.5 | M15: 가 | N15: 0.9 | O15: 우 | P15: 1.35 | Q15: 미 | R15: 1.2 | S15: 미 | T15: 1.2
A16: 위원4 | B16: 계
B17: 책임기술자 | C17: 미 | D17: 2.4 | E17: 가 | F17: 1.8 | G17: 수 | H17: 3 | I17: 양 | J17: 2.1 | K17: 미 | L17: 2.4 | M17: 양 | N17: 2.1 | O17: 우 | P17: 2.7 | Q17: 미 | R17: 2.4 | S17: 우 | T17: 2.7
B18: 보조기술자 | C18: 가 | D18: 0.9 | E18: 양 | F18: 1.05 | G18: 우 | H18: 1.35 | I18: 양 | J18: 1.05 | K18: 미 | L18: 1.2 | M18: 미 | N18: 1.2 | O18: 우 | P18: 1.35 | Q18: 미 | R18: 1.2 | S18: 수 | T18: 1.5
A19: 위원5 | B19: 계
B20: 책임기술자 | C20: 미 | D20: 2.4 | E20: 미 | F20: 2.4 | G20: 우 | H20: 2.7 | I20: 양 | J20: 2.1 | K20: 양 | L20: 2.1 | M20: 미 | N20: 2.4 | O20: 우 | P20: 2.7 | Q20: 가 | R20: 1.8 | S20: 수 | T20: 3
B21: 보조기술자 | C21: 가 | D21: 0.9 | E21: 미 | F21: 1.2 | G21: 수 | H21: 1.5 | I21: 미 | J21: 1.2 | K21: 양 | L21: 1.05 | M21: 미 | N21: 1.2 | O21: 우 | P21: 1.35 | Q21: 양 | R21: 1.05 | S21: 우 | T21: 1.35
A22: 책임기술자 평가 평균점수 | D22: =(D8+D11+D14+D17+D20)/5 -> 2.34 | F22: =(F8+F11+F14+F17+F20)/5 -> 2.34 | H22: =(H8+H11+H14+H17+H20)/5 -> 2.76 | J22: 2.04 | L22: 2.4 | N22: 2.16 | P22: 2.76 | R22: 2.16 | T22: 2.64
A23: 참여기술자 평가 평균점수 | D23: =(D9+D12+D15+D18+D21)/5 -> 1.02 | F23: =(F9+F12+F15+F18+F21)/5 -> 1.23 | H23: 1.35 | J23: 1.02 | L23: 1.23 | N23: 1.11 | P23: 1.35 | R23: 1.14 | T23: 1.35
A24: 책임기술자 평가 최고최하점수 | D24: =(D11+D17+D20)/3 -> 2.3 | F24: =(F8+F11+F20)/3 -> 2.3 | H24: =(H8+H17+H20)/3 -> 2.8 | J24: =(J14+J17+J20)/3 -> 2.1 | L24: =(L8+L11+L17)/3 -> 2.4 | N24: =(N8+N17+N20)/3 -> 2.2 | P24: =(P14+P17+P20)/3 -> 2.7 | R24: =(R14+R17+R20)/3 -> 2.2 | T24: =(T11+T14+T17)/3 -> 2.6
A25: 참여기술자 평가 최고최하점수 | D25: =(D12+D15+D18)/3 -> 1 | F25: =(F15+F18+F21)/3 -> 1.2 | H25: =(H9+H12+H18)/3 -> 1.35 | J25: =(J12+J15+J18)/3 -> 1 | L25: =(L9+L12+L18)/3 -> 1.2 | N25: =(N9+N18+N21)/3 -> 1.15 | P25: =(P15+P18+P21)/3 -> 1.35 | R25: =(R15+R18+R21)/3 -> 1.15 | T25: =(T9+T12+T21)/3 -> 1.35
A26: 총 계 | B26: PQ점수 | D26: =D24+D25 -> 3.30 | E26: =E24+E25 -> 0.00 | F26: 3.50 | G26: 0.00 | H26: 4.15 | I26: =I24+I25 -> 0.00 | J26: =J24+J25 -> 3.10 | K26: =K24+K25 -> 0.00 | L26: =L24+L25 -> 3.60 | M26: =M24+M25 -> 0.00 | N26: =N24+N25 -> 3.35 | O26: =O24+O25 -> 0.00 | P26: =P24+P25 -> 4.05 | Q26: =Q24+Q25 -> 0.00 | R26: =R24+R25 -> 3.35 | S26: =S24+S25 -> 0.00 | T26: =T24+T25 -> 3.95
A27: * 배점: 책임기술자(3점), 보조기술자(1.5점) * 평가등급가중지 수(1.0), 우(0.9), 미(0.8), 양(0.7), 가(0.6)

Sheet Sheet3
